{"text_format":"3","workbook":"xlsx","n_sheets":1,"sheets":["Gewinn- und Verlustaufstellung"],"not_rendered":{"defined_names":2},"read":"whole","date_system":"1900"}

{"sheet":"Gewinn- und Verlustaufstellung","index":0,"n_rows":60,"n_cols":10,"rows_kept":60,"merged":[[9,1,9,9],[16,1,16,9],[24,1,24,9],[38,1,38,9],[43,1,43,9],[56,1,56,9]]}
[null,"Gewinn- und Verlustaufstellung"]
[]
[{"$nulls":3},"VORHERIGER ZEITRAUM","BUDGET ","AKTUELLER ZEITRAUM",null,"AKTUELLER ZEITRAUM\n% VOM UMSATZ","% ÄNDERUNG\nGEGENÜBER VORHERIGEM ZEITRAUM","% ÄNDERUNG\nGEGENÜBER BUDGET "]
[null,"Umsatzerlös"]
[null,"Produkt/Dienstleistung 1",null,40,50,45,null,{"$f":"IFERROR(UmsatzErlös[[#This Row],[Aktueller Zeitraum]]/SUBTOTAL(109,UmsatzErlös[Aktueller Zeitraum]),0)","v":{"v":1,"d":"100.0%"}},{"$f":"IFERROR(UmsatzErlös[[#This Row],[Aktueller Zeitraum]]/UmsatzErlös[[#This Row],[Vorheriger Zeitraum]]-1,0)","v":{"v":0.125,"d":"12.5%"}},{"$f":"IFERROR(UmsatzErlös[[#This Row],[Aktueller Zeitraum]]/UmsatzErlös[[#This Row],[Budget]]-1,0)","v":{"v":-0.09999999999999998,"d":"-10.0%"}}]
[null,"Produkt/Dienstleistung 2",{"$nulls":5},{"$f":"IFERROR(UmsatzErlös[[#This Row],[Aktueller Zeitraum]]/SUBTOTAL(109,UmsatzErlös[Aktueller Zeitraum]),0)","v":0},{"$f":"IFERROR(UmsatzErlös[[#This Row],[Aktueller Zeitraum]]/UmsatzErlös[[#This Row],[Vorheriger Zeitraum]]-1,0)","v":0},{"$f":"IFERROR(UmsatzErlös[[#This Row],[Aktueller Zeitraum]]/UmsatzErlös[[#This Row],[Budget]]-1,0)","v":0}]
[null,"Produkt/Dienstleistung 3",{"$nulls":5},{"$f":"IFERROR(UmsatzErlös[[#This Row],[Aktueller Zeitraum]]/SUBTOTAL(109,UmsatzErlös[Aktueller Zeitraum]),0)","v":0},{"$f":"IFERROR(UmsatzErlös[[#This Row],[Aktueller Zeitraum]]/UmsatzErlös[[#This Row],[Vorheriger Zeitraum]]-1,0)","v":0},{"$f":"IFERROR(UmsatzErlös[[#This Row],[Aktueller Zeitraum]]/UmsatzErlös[[#This Row],[Budget]]-1,0)","v":0}]
[null,"Produkt/Dienstleistung 4",{"$nulls":5},{"$f":"IFERROR(UmsatzErlös[[#This Row],[Aktueller Zeitraum]]/SUBTOTAL(109,UmsatzErlös[Aktueller Zeitraum]),0)","v":0},{"$f":"IFERROR(UmsatzErlös[[#This Row],[Aktueller Zeitraum]]/UmsatzErlös[[#This Row],[Vorheriger Zeitraum]]-1,0)","v":0},{"$f":"IFERROR(UmsatzErlös[[#This Row],[Aktueller Zeitraum]]/UmsatzErlös[[#This Row],[Budget]]-1,0)","v":0}]
[null,"Gesamt",null,{"$f":"SUBTOTAL(109,UmsatzErlös[Vorheriger Zeitraum])","v":40},{"$f":"SUBTOTAL(109,UmsatzErlös[Budget])","v":50},{"$f":"SUBTOTAL(109,UmsatzErlös[Aktueller Zeitraum])","v":45},null,{"$f":"IFERROR(UmsatzErlös[[#Totals],[Aktueller Zeitraum]]/UmsatzErlös[[#Totals],[Aktueller Zeitraum]],0)","v":{"v":1,"d":"100.0%"}},{"$f":"IFERROR(UmsatzErlös[[#Totals],[Aktueller Zeitraum]]/UmsatzErlös[[#Totals],[Vorheriger Zeitraum]]-1,0)","v":{"v":0.125,"d":"12.5%"}},{"$f":"IFERROR(UmsatzErlös[[#Totals],[Aktueller Zeitraum]]/UmsatzErlös[[#Totals],[Budget]]-1,0)","v":{"v":-0.09999999999999998,"d":"-10.0%"}}]
[]
[null,"Umsatzkosten"]
[null,"Produkt/Dienstleistung 1",null,null,2,3,null,{"$f":"IFERROR(Vertriebskosten[[#This Row],[Aktueller Zeitraum]]/SUBTOTAL(109,UmsatzErlös[Aktueller Zeitraum]),0)","v":{"v":0.06666666666666667,"d":"6.7%"}},{"$f":"IFERROR(Vertriebskosten[[#This Row],[Aktueller Zeitraum]]/Vertriebskosten[[#This Row],[Vorheriger Zeitraum]]-1,0)","v":0},{"$f":"IFERROR(Vertriebskosten[[#This Row],[Aktueller Zeitraum]]/Vertriebskosten[[#This Row],[Budget]]-1,0)","v":{"v":0.5,"d":"50.0%"}}]
[null,"Produkt/Dienstleistung 2",null,null,5,3,null,{"$f":"IFERROR(Vertriebskosten[[#This Row],[Aktueller Zeitraum]]/SUBTOTAL(109,UmsatzErlös[Aktueller Zeitraum]),0)","v":{"v":0.06666666666666667,"d":"6.7%"}},{"$f":"IFERROR(Vertriebskosten[[#This Row],[Aktueller Zeitraum]]/Vertriebskosten[[#This Row],[Vorheriger Zeitraum]]-1,0)","v":0},{"$f":"IFERROR(Vertriebskosten[[#This Row],[Aktueller Zeitraum]]/Vertriebskosten[[#This Row],[Budget]]-1,0)","v":{"v":-0.4,"d":"-40.0%"}}]
[null,"Produkt/Dienstleistung 3",{"$nulls":3},1,null,{"$f":"IFERROR(Vertriebskosten[[#This Row],[Aktueller Zeitraum]]/SUBTOTAL(109,UmsatzErlös[Aktueller Zeitraum]),0)","v":{"v":0.022222222222222223,"d":"2.2%"}},{"$f":"IFERROR(Vertriebskosten[[#This Row],[Aktueller Zeitraum]]/Vertriebskosten[[#This Row],[Vorheriger Zeitraum]]-1,0)","v":0},{"$f":"IFERROR(Vertriebskosten[[#This Row],[Aktueller Zeitraum]]/Vertriebskosten[[#This Row],[Budget]]-1,0)","v":0}]
[null,"Produkt/Dienstleistung 4",{"$nulls":5},{"$f":"IFERROR(Vertriebskosten[[#This Row],[Aktueller Zeitraum]]/SUBTOTAL(109,UmsatzErlös[Aktueller Zeitraum]),0)","v":0},{"$f":"IFERROR(Vertriebskosten[[#This Row],[Aktueller Zeitraum]]/Vertriebskosten[[#This Row],[Vorheriger Zeitraum]]-1,0)","v":0},{"$f":"IFERROR(Vertriebskosten[[#This Row],[Aktueller Zeitraum]]/Vertriebskosten[[#This Row],[Budget]]-1,0)","v":0}]
[null,"Gesamt",null,{"$f":"SUBTOTAL(109,Vertriebskosten[Vorheriger Zeitraum])","v":0},{"$f":"SUBTOTAL(109,Vertriebskosten[Budget])","v":7},{"$f":"SUBTOTAL(109,Vertriebskosten[Aktueller Zeitraum])","v":7},null,{"$f":"IFERROR(Vertriebskosten[[#Totals],[Aktueller Zeitraum]]/SUBTOTAL(109,UmsatzErlös[Aktueller Zeitraum]),0)","v":{"v":0.15555555555555556,"d":"15.6%"}},{"$f":"IFERROR(Vertriebskosten[[#Totals],[Aktueller Zeitraum]]/Vertriebskosten[[#Totals],[Vorheriger Zeitraum]]-1,0)","v":0},{"$f":"IFERROR(Vertriebskosten[[#Totals],[Aktueller Zeitraum]]/Vertriebskosten[[#Totals],[Budget]]-1,0)","v":0}]
[]
[null,"Bruttogewinn",null,{"$f":"SUM(UmsatzErlös[Vorheriger Zeitraum])-SUM(Vertriebskosten[Vorheriger Zeitraum])","v":40},{"$f":"SUM(UmsatzErlös[Budget])-SUM(Vertriebskosten[Budget])","v":43},{"$f":"SUM(UmsatzErlös[Aktueller Zeitraum])-SUM(Vertriebskosten[Aktueller Zeitraum])","v":38},null,{"$f":"IFERROR(F18/SUBTOTAL(109,UmsatzErlös[Aktueller Zeitraum]),0)","v":{"v":0.8444444444444444,"d":"84.4%"}},{"$f":"IFERROR(F18/D18-1,0)","v":{"v":-0.050000000000000044,"d":"-5.0%"}},{"$f":"IFERROR(F18/E18-1,0)","v":{"v":-0.11627906976744184,"d":"-11.6%"}}]
[]
[null,"Betriebsausgaben: Vertrieb und Marketing"]
[null,"Werbung",null,null,22,19,null,{"$f":"IFERROR(VertriebUndMarketing[[#This Row],[Aktueller Zeitraum]]/SUBTOTAL(109,UmsatzErlös[Aktueller Zeitraum]),0)","v":{"v":0.4222222222222222,"d":"42.2%"}},{"$f":"IFERROR(VertriebUndMarketing[[#This Row],[Aktueller Zeitraum]]/VertriebUndMarketing[[#This Row],[Vorheriger Zeitraum]]-1,0)","v":0},{"$f":"IFERROR(VertriebUndMarketing[[#This Row],[Aktueller Zeitraum]]/VertriebUndMarketing[[#This Row],[Budget]]-1,0)","v":{"v":-0.13636363636363635,"d":"-13.6%"}}]
[null,"Direktmarketing",{"$nulls":5},{"$f":"IFERROR(VertriebUndMarketing[[#This Row],[Aktueller Zeitraum]]/SUBTOTAL(109,UmsatzErlös[Aktueller Zeitraum]),0)","v":0},{"$f":"IFERROR(VertriebUndMarketing[[#This Row],[Aktueller Zeitraum]]/VertriebUndMarketing[[#This Row],[Vorheriger Zeitraum]]-1,0)","v":0},{"$f":"IFERROR(#REF!/VertriebUndMarketing[[#This Row],[Budget]]-1,0)","v":0}]
[null,"Sonstige Ausgaben (angeben)",{"$nulls":5},{"$f":"IFERROR(VertriebUndMarketing[[#This Row],[Aktueller Zeitraum]]/SUBTOTAL(109,UmsatzErlös[Aktueller Zeitraum]),0)","v":0},{"$f":"IFERROR(VertriebUndMarketing[[#This Row],[Aktueller Zeitraum]]/VertriebUndMarketing[[#This Row],[Vorheriger Zeitraum]]-1,0)","v":0},{"$f":"IFERROR(#REF!/VertriebUndMarketing[[#This Row],[Budget]]-1,0)","v":0}]
[null,"Gesamt",null,{"$f":"SUBTOTAL(109,VertriebUndMarketing[Vorheriger Zeitraum])","v":0},{"$f":"SUBTOTAL(109,VertriebUndMarketing[Budget])","v":22},{"$f":"SUBTOTAL(109,VertriebUndMarketing[Aktueller Zeitraum])","v":19},null,{"$f":"IFERROR(VertriebUndMarketing[[#Totals],[Aktueller Zeitraum]]/SUBTOTAL(109,UmsatzErlös[Aktueller Zeitraum]),0)","v":{"v":0.4222222222222222,"d":"42.2%"}},{"$f":"IFERROR(VertriebUndMarketing[[#Totals],[Aktueller Zeitraum]]/VertriebUndMarketing[[#Totals],[Vorheriger Zeitraum]]-1,0)","v":0},{"$f":"SUBTOTAL(109,VertriebUndMarketing[% Änderung gegenüber Budget])","v":{"v":-0.13636363636363635,"d":"-13.6%"}}]
[]
[null,"Betriebsausgaben: Allgemein und Verwaltung"]
[null,"Löhne und Gehälter",null,null,56,51,null,{"$f":"IFERROR(AllgemeinUndVerwaltung[[#This Row],[Aktueller Zeitraum]]/SUBTOTAL(109,UmsatzErlös[Aktueller Zeitraum]),0)","v":{"v":1.1333333333333333,"d":"113.3%"}},{"$f":"IFERROR(AllgemeinUndVerwaltung[[#This Row],[Aktueller Zeitraum]]/AllgemeinUndVerwaltung[[#This Row],[Vorheriger Zeitraum]]-1,0)","v":0},{"$f":"IFERROR(AllgemeinUndVerwaltung[[#This Row],[Aktueller Zeitraum]]/AllgemeinUndVerwaltung[[#This Row],[Budget]]-1,0)","v":{"v":-0.0892857142857143,"d":"-8.9%"}}]
[null,"Fremdleistungen",{"$nulls":5},{"$f":"IFERROR(AllgemeinUndVerwaltung[[#This Row],[Aktueller Zeitraum]]/SUBTOTAL(109,UmsatzErlös[Aktueller Zeitraum]),0)","v":0},{"$f":"IFERROR(AllgemeinUndVerwaltung[[#This Row],[Aktueller Zeitraum]]/AllgemeinUndVerwaltung[[#This Row],[Vorheriger Zeitraum]]-1,0)","v":0},{"$f":"IFERROR(AllgemeinUndVerwaltung[[#This Row],[Aktueller Zeitraum]]/AllgemeinUndVerwaltung[[#This Row],[Budget]]-1,0)","v":0}]
[null,"Betriebsmittel",{"$nulls":5},{"$f":"IFERROR(AllgemeinUndVerwaltung[[#This Row],[Aktueller Zeitraum]]/SUBTOTAL(109,UmsatzErlös[Aktueller Zeitraum]),0)","v":0},{"$f":"IFERROR(AllgemeinUndVerwaltung[[#This Row],[Aktueller Zeitraum]]/AllgemeinUndVerwaltung[[#This Row],[Vorheriger Zeitraum]]-1,0)","v":0},{"$f":"IFERROR(AllgemeinUndVerwaltung[[#This Row],[Aktueller Zeitraum]]/AllgemeinUndVerwaltung[[#This Row],[Budget]]-1,0)","v":0}]
[null,"Verpflegung und Bewirtung",{"$nulls":5},{"$f":"IFERROR(AllgemeinUndVerwaltung[[#This Row],[Aktueller Zeitraum]]/SUBTOTAL(109,UmsatzErlös[Aktueller Zeitraum]),0)","v":0},{"$f":"IFERROR(AllgemeinUndVerwaltung[[#This Row],[Aktueller Zeitraum]]/AllgemeinUndVerwaltung[[#This Row],[Vorheriger Zeitraum]]-1,0)","v":0},{"$f":"IFERROR(AllgemeinUndVerwaltung[[#This Row],[Aktueller Zeitraum]]/AllgemeinUndVerwaltung[[#This Row],[Budget]]-1,0)","v":0}]
[null,"Miete",{"$nulls":5},{"$f":"IFERROR(AllgemeinUndVerwaltung[[#This Row],[Aktueller Zeitraum]]/SUBTOTAL(109,UmsatzErlös[Aktueller Zeitraum]),0)","v":0},{"$f":"IFERROR(AllgemeinUndVerwaltung[[#This Row],[Aktueller Zeitraum]]/AllgemeinUndVerwaltung[[#This Row],[Vorheriger Zeitraum]]-1,0)","v":0},{"$f":"IFERROR(AllgemeinUndVerwaltung[[#This Row],[Aktueller Zeitraum]]/AllgemeinUndVerwaltung[[#This Row],[Budget]]-1,0)","v":0}]
[null,"Telefon",{"$nulls":5},{"$f":"IFERROR(AllgemeinUndVerwaltung[[#This Row],[Aktueller Zeitraum]]/SUBTOTAL(109,UmsatzErlös[Aktueller Zeitraum]),0)","v":0},{"$f":"IFERROR(AllgemeinUndVerwaltung[[#This Row],[Aktueller Zeitraum]]/AllgemeinUndVerwaltung[[#This Row],[Vorheriger Zeitraum]]-1,0)","v":0},{"$f":"IFERROR(AllgemeinUndVerwaltung[[#This Row],[Aktueller Zeitraum]]/AllgemeinUndVerwaltung[[#This Row],[Budget]]-1,0)","v":0}]
[null,"Nebenkosten",{"$nulls":5},{"$f":"IFERROR(AllgemeinUndVerwaltung[[#This Row],[Aktueller Zeitraum]]/SUBTOTAL(109,UmsatzErlös[Aktueller Zeitraum]),0)","v":0},{"$f":"IFERROR(AllgemeinUndVerwaltung[[#This Row],[Aktueller Zeitraum]]/AllgemeinUndVerwaltung[[#This Row],[Vorheriger Zeitraum]]-1,0)","v":0},{"$f":"IFERROR(AllgemeinUndVerwaltung[[#This Row],[Aktueller Zeitraum]]/AllgemeinUndVerwaltung[[#This Row],[Budget]]-1,0)","v":0}]
[null,"Abschreibung",{"$nulls":5},{"$f":"IFERROR(AllgemeinUndVerwaltung[[#This Row],[Aktueller Zeitraum]]/SUBTOTAL(109,UmsatzErlös[Aktueller Zeitraum]),0)","v":0},{"$f":"IFERROR(AllgemeinUndVerwaltung[[#This Row],[Aktueller Zeitraum]]/AllgemeinUndVerwaltung[[#This Row],[Vorheriger Zeitraum]]-1,0)","v":0},{"$f":"IFERROR(AllgemeinUndVerwaltung[[#This Row],[Aktueller Zeitraum]]/AllgemeinUndVerwaltung[[#This Row],[Budget]]-1,0)","v":0}]
[null,"Versicherungen",{"$nulls":5},{"$f":"IFERROR(AllgemeinUndVerwaltung[[#This Row],[Aktueller Zeitraum]]/SUBTOTAL(109,UmsatzErlös[Aktueller Zeitraum]),0)","v":0},{"$f":"IFERROR(AllgemeinUndVerwaltung[[#This Row],[Aktueller Zeitraum]]/AllgemeinUndVerwaltung[[#This Row],[Vorheriger Zeitraum]]-1,0)","v":0},{"$f":"IFERROR(AllgemeinUndVerwaltung[[#This Row],[Aktueller Zeitraum]]/AllgemeinUndVerwaltung[[#This Row],[Budget]]-1,0)","v":0}]
[null,"Reparaturen und Wartung",{"$nulls":5},{"$f":"IFERROR(AllgemeinUndVerwaltung[[#This Row],[Aktueller Zeitraum]]/SUBTOTAL(109,UmsatzErlös[Aktueller Zeitraum]),0)","v":0},{"$f":"IFERROR(AllgemeinUndVerwaltung[[#This Row],[Aktueller Zeitraum]]/AllgemeinUndVerwaltung[[#This Row],[Vorheriger Zeitraum]]-1,0)","v":0},{"$f":"IFERROR(AllgemeinUndVerwaltung[[#This Row],[Aktueller Zeitraum]]/AllgemeinUndVerwaltung[[#This Row],[Budget]]-1,0)","v":0}]
[null,"Sonstige Ausgaben (angeben)",{"$nulls":5},{"$f":"IFERROR(AllgemeinUndVerwaltung[[#This Row],[Aktueller Zeitraum]]/SUBTOTAL(109,UmsatzErlös[Aktueller Zeitraum]),0)","v":0},{"$f":"IFERROR(AllgemeinUndVerwaltung[[#This Row],[Aktueller Zeitraum]]/AllgemeinUndVerwaltung[[#This Row],[Vorheriger Zeitraum]]-1,0)","v":0},{"$f":"IFERROR(AllgemeinUndVerwaltung[[#This Row],[Aktueller Zeitraum]]/AllgemeinUndVerwaltung[[#This Row],[Budget]]-1,0)","v":0}]
[null,"Gesamt",null,{"$f":"SUBTOTAL(109,AllgemeinUndVerwaltung[Vorheriger Zeitraum])","v":0},{"$f":"SUBTOTAL(109,AllgemeinUndVerwaltung[Budget])","v":56},{"$f":"SUBTOTAL(109,AllgemeinUndVerwaltung[Aktueller Zeitraum])","v":51},null,{"$f":"IFERROR(AllgemeinUndVerwaltung[[#Totals],[Aktueller Zeitraum]]/SUBTOTAL(109,UmsatzErlös[Aktueller Zeitraum]),0)","v":{"v":1.1333333333333333,"d":"113.3%"}},{"$f":"IFERROR(AllgemeinUndVerwaltung[[#Totals],[Aktueller Zeitraum]]/AllgemeinUndVerwaltung[[#Totals],[Vorheriger Zeitraum]]-1,0)","v":0},{"$f":"IFERROR(AllgemeinUndVerwaltung[[#Totals],[Aktueller Zeitraum]]/AllgemeinUndVerwaltung[[#Totals],[Budget]]-1,0)","v":{"v":-0.0892857142857143,"d":"-8.9%"}}]
[]
[null,"Betriebsausgaben: Sonstige"]
[null,"Sonstige Betriebsausgaben 1",null,null,10,null,null,{"$f":"IFERROR(KategorieWeitereBetriebkosten[[#This Row],[Aktueller Zeitraum]]/SUBTOTAL(109,UmsatzErlös[Aktueller Zeitraum]),0)","v":0},{"$f":"IFERROR(KategorieWeitereBetriebkosten[[#This Row],[Aktueller Zeitraum]]/KategorieWeitereBetriebkosten[[#This Row],[Vorheriger Zeitraum]]-1,0)","v":0},{"$f":"IFERROR(KategorieWeitereBetriebkosten[[#This Row],[Aktueller Zeitraum]]/KategorieWeitereBetriebkosten[[#This Row],[Budget]]-1,0)","v":{"v":-1,"d":"-100.0%"}}]
[null,"Sonstige Betriebsausgaben 2",{"$nulls":5},{"$f":"IFERROR(KategorieWeitereBetriebkosten[[#This Row],[Aktueller Zeitraum]]/SUBTOTAL(109,UmsatzErlös[Aktueller Zeitraum]),0)","v":0},{"$f":"IFERROR(KategorieWeitereBetriebkosten[[#This Row],[Aktueller Zeitraum]]/KategorieWeitereBetriebkosten[[#This Row],[Vorheriger Zeitraum]]-1,0)","v":0},{"$f":"IFERROR(KategorieWeitereBetriebkosten[[#This Row],[Aktueller Zeitraum]]/KategorieWeitereBetriebkosten[[#This Row],[Budget]]-1,0)","v":0}]
[null,"Gesamt",null,{"$f":"SUBTOTAL(109,KategorieWeitereBetriebkosten[Vorheriger Zeitraum])","v":0},{"$f":"SUBTOTAL(109,KategorieWeitereBetriebkosten[Budget])","v":10},{"$f":"SUBTOTAL(109,KategorieWeitereBetriebkosten[Aktueller Zeitraum])","v":0},{"$nulls":3},{"$f":"SUBTOTAL(109,KategorieWeitereBetriebkosten[% Änderung gegenüber Budget])","v":{"v":-1,"d":"-100.0%"}}]
[]
[null,"Summe Betriebsausgaben",null,{"$f":"SUM(VertriebUndMarketing[Vorheriger Zeitraum],AllgemeinUndVerwaltung[Vorheriger Zeitraum],KategorieWeitereBetriebkosten[Vorheriger Zeitraum])","v":0},{"$f":"SUM(VertriebUndMarketing[Budget],AllgemeinUndVerwaltung[Budget],KategorieWeitereBetriebkosten[Budget])","v":88},{"$f":"SUM(VertriebUndMarketing[Aktueller Zeitraum],AllgemeinUndVerwaltung[Aktueller Zeitraum],KategorieWeitereBetriebkosten[Aktueller Zeitraum])","v":70},null,{"$f":"IFERROR(F45/SUBTOTAL(109,UmsatzErlös[Aktueller Zeitraum]),0)","v":{"v":1.5555555555555556,"d":"155.6%"}},{"$f":"IFERROR(F45/D45-1,0)","v":0},{"$f":"IFERROR(F45/E45-1,0)","v":{"v":-0.20454545454545459,"d":"-20.5%"}}]
[]
[null,"Einkünfte aus Betrieb",null,{"$f":"D18-D45","v":40},{"$f":"E18-E45","v":-45},{"$f":"F18-F45","v":-32},null,{"$f":"IFERROR(F47/SUBTOTAL(109,UmsatzErlös[Aktueller Zeitraum]),0)","v":{"v":-0.7111111111111111,"d":"-71.1%"}},{"$f":"IFERROR(IF(D47=F47,0,IF(F47>D47,ABS((F47/D47)-1),IF(AND(F47<D47,D47<0),-((F47/D47)-1),(F47/D47)-1))),0)","v":{"v":-1.8,"d":"-180.0%"}},{"$f":"IFERROR(IF(E47=F47,0,IF(F47>E47,ABS((F47/E47)-1),IF(AND(F47<E47,E47<0),-((F47/E47)-1),(F47/E47)-1))),0)","v":{"v":0.28888888888888886,"d":"28.9%"}}]
[]
[null,"Sonstige Einkünfte",{"$nulls":5},{"$f":"IFERROR(F49/SUBTOTAL(109,UmsatzErlös[Aktueller Zeitraum]),0)","v":0},{"$f":"IFERROR(F49/D49-1,0)","v":0},{"$f":"IFERROR(F49/E49-1,0)","v":0}]
[]
[null,"Steuern"]
[null,"Einkommensteuern",null,null,32,30,null,{"$f":"IFERROR(Steuern[[#This Row],[Aktueller Zeitraum]]/SUBTOTAL(109,UmsatzErlös[Aktueller Zeitraum]),0)","v":{"v":0.6666666666666666,"d":"66.7%"}},{"$f":"IFERROR(Steuern[[#This Row],[Aktueller Zeitraum]]/Steuern[[#This Row],[Vorheriger Zeitraum]]-1,0)","v":0},{"$f":"IFERROR(Steuern[[#This Row],[Aktueller Zeitraum]]/Steuern[[#This Row],[Budget]]-1,0)","v":{"v":-0.0625,"d":"-6.3%"}}]
[null,"Lohnsteuern",{"$nulls":5},{"$f":"IFERROR(Steuern[[#This Row],[Aktueller Zeitraum]]/SUBTOTAL(109,UmsatzErlös[Aktueller Zeitraum]),0)","v":0},{"$f":"IFERROR(Steuern[[#This Row],[Aktueller Zeitraum]]/Steuern[[#This Row],[Vorheriger Zeitraum]]-1,0)","v":0},{"$f":"IFERROR(Steuern[[#This Row],[Aktueller Zeitraum]]/Steuern[[#This Row],[Budget]]-1,0)","v":0}]
[null,"Grundsteuern",{"$nulls":5},{"$f":"IFERROR(Steuern[[#This Row],[Aktueller Zeitraum]]/SUBTOTAL(109,UmsatzErlös[Aktueller Zeitraum]),0)","v":0},{"$f":"IFERROR(Steuern[[#This Row],[Aktueller Zeitraum]]/Steuern[[#This Row],[Vorheriger Zeitraum]]-1,0)","v":0},{"$f":"IFERROR(Steuern[[#This Row],[Aktueller Zeitraum]]/Steuern[[#This Row],[Budget]]-1,0)","v":0}]
[null,"Sonstige Steuern (angeben)",{"$nulls":5},{"$f":"IFERROR(Steuern[[#This Row],[Aktueller Zeitraum]]/SUBTOTAL(109,UmsatzErlös[Aktueller Zeitraum]),0)","v":0},{"$f":"IFERROR(Steuern[[#This Row],[Aktueller Zeitraum]]/Steuern[[#This Row],[Vorheriger Zeitraum]]-1,0)","v":0},{"$f":"IFERROR(Steuern[[#This Row],[Aktueller Zeitraum]]/Steuern[[#This Row],[Budget]]-1,0)","v":0}]
[null,"Gesamt",null,{"$f":"SUBTOTAL(109,Steuern[Vorheriger Zeitraum])","v":0},{"$f":"SUBTOTAL(109,Steuern[Budget])","v":32},{"$f":"SUBTOTAL(109,Steuern[Aktueller Zeitraum])","v":30},null,{"$f":"IFERROR(Steuern[[#Totals],[Aktueller Zeitraum]]/SUBTOTAL(109,UmsatzErlös[Aktueller Zeitraum]),0)","v":{"v":0.6666666666666666,"d":"66.7%"}},{"$f":"IFERROR(Steuern[[#Totals],[Aktueller Zeitraum]]/Steuern[[#Totals],[Vorheriger Zeitraum]]-1,0)","v":0},{"$f":"IFERROR(Steuern[[#Totals],[Aktueller Zeitraum]]/Steuern[[#Totals],[Budget]]-1,0)","v":{"v":-0.0625,"d":"-6.3%"}}]
[]
[null,"Reingewinn",null,{"$f":"D47+D49-Steuern[[#Totals],[Vorheriger Zeitraum]]","v":40},{"$f":"E47+E49-Steuern[[#Totals],[Vorheriger Zeitraum]]","v":-45},{"$f":"F47+F49-Steuern[[#Totals],[Vorheriger Zeitraum]]","v":-32},null,{"$f":"IFERROR(F58/SUBTOTAL(109,UmsatzErlös[Aktueller Zeitraum]),0)","v":{"v":-0.7111111111111111,"d":"-71.1%"}},{"$f":"IFERROR(IF(D58=F58,0,IF(F58>D58,ABS((F58/D58)-1),IF(AND(F58<D58,D58<0),-((F58/D58)-1),(F58/D58)-1))),0)","v":{"v":-1.8,"d":"-180.0%"}},{"$f":"IFERROR(IF(E58=F58,0,IF(F58>E58,ABS((F58/E58)-1),IF(AND(F58<E58,E58<0),-((F58/E58)-1),(F58/E58)-1))),0)","v":{"v":0.28888888888888886,"d":"28.9%"}}]
[null,"Bruttogewinnmarge",null,{"$f":"D18/SUM(UmsatzErlös[Vorheriger Zeitraum])","v":{"v":1,"d":"100.0%"}},{"$f":"E18/SUM(UmsatzErlös[Budget])","v":{"v":0.86,"d":"86.0%"}},{"$f":"F18/SUM(UmsatzErlös[Aktueller Zeitraum])","v":{"v":0.8444444444444444,"d":"84.4%"}}]
[null,"Umsatzrendite",null,{"$f":"D58/SUM(UmsatzErlös[Vorheriger Zeitraum])","v":{"v":1,"d":"100.0%"}},{"$f":"E58/SUM(UmsatzErlös[Budget])","v":{"v":-0.9,"d":"-90.0%"}},{"$f":"F58/SUM(UmsatzErlös[Aktueller Zeitraum])","v":{"v":-0.7111111111111111,"d":"-71.1%"}}]